fUSD/lending_fUSD_20250530
["ID","MTS","AMOUNT","RATE_DAILY","PERIOD"]
[363181423,1748616652651,-500.0,0.00021917,2]
[363181424,1748616652661,-500.0,0.00021917,2]
[363181425,1748616652673,-514.16,0.00021917,2]
[363181426,1748616652682,-500.0,0.00021917,2]
[363181427,1748616652691,-684.04,0.00021917,2]
[363181428,1748616652701,-193.08072687,0.00021917,2]
[363181429,1748616652710,-420.0,0.00021917,2]
[363181430,1748616652720,-420.0,0.00021917,2]
[363181431,1748616652729,-1567.32,0.00021917,2]
[363181432,1748616652739,-467.55909703,0.00021917,2]
[363181433,1748616652748,-785.99,0.00021917,2]
[363181434,1748616652757,-420.0,0.00021917,2]
[363181435,1748616652766,-420.0,0.00021917,2]
[363181436,1748616652775,-151.0,0.00021917,2]
[363181437,1748616652784,-423.89286394,0.00021917,2]
[363181438,1748616652793,-420.0,0.00021917,2]
[363181439,1748616652803,-151.0,0.00021917,2]
[363181440,1748616652812,-1037.35,0.00021917,2]
[363181441,1748616652822,-151.0,0.00021917,2]
[363181442,1748616652831,-1298.52,0.00021917,2]
[363181443,1748616652840,-420.0,0.00021917,2]
[363181444,1748616652851,-420.0,0.00021917,2]
[363181445,1748616652860,-15092.91,0.00021917,2]
[363181446,1748616652869,-420.0,0.00021917,2]
[363181447,1748616652879,-420.0,0.00021917,2]
[363181448,1748616652888,-420.0,0.00021917,2]
[363181449,1748616652898,-3324.29,0.00021917,2]
[363181450,1748616652907,-420.0,0.00021917,2]
[363181451,1748616652917,-420.0,0.00021917,2]
[363181452,1748616652926,-500.0,0.00021917,2]
[363181453,1748616652935,-500.0,0.00021917,2]
[363181454,1748616652945,-500.0,0.00021917,2]
[363181455,1748616652957,-1454.98,0.00021917,2]
[363181456,1748616652967,-500.0,0.00021917,2]
[363181457,1748616652976,-500.0,0.00021917,2]
[363181458,1748616652986,-500.0,0.00021917,2]
[363181459,1748616652997,-500.0,0.00021917,2]
[363181460,1748616653006,-605.05690596,0.00021917,2]
[363181461,1748616653015,-420.0,0.00021917,2]
[363181462,1748616653024,-500.0,0.00021917,2]
[363181463,1748616653035,-598.0,0.00021917,2]
[363181464,1748616653045,-420.0,0.00021917,2]
[363181465,1748616653054,-1690.76,0.00021917,2]
[363181466,1748616653063,-420.0,0.00021917,2]
[363181467,1748616653073,-420.0,0.00021917,2]
[363181468,1748616653082,-420.0,0.00021917,2]
[363181469,1748616653092,-420.0,0.00021917,2]
[363181470,1748616653101,-420.0,0.00021917,2]
[363181471,1748616653111,-420.0,0.00021917,2]
[363181472,1748616653122,-420.0,0.00021917,2]
[363181473,1748616653133,-420.0,0.00021917,2]
[363181474,1748616653142,-2056.94,0.00021917,2]
[363181475,1748616653151,-3564.88,0.00021917,2]
[363181476,1748616653160,-420.0,0.00021917,2]
[363181477,1748616653170,-420.0,0.00021917,2]
[363181478,1748616653179,-420.0,0.00021917,2]
[363181479,1748616653188,-709.84,0.00021917,2]
[363181480,1748616653198,-433.04178019,0.00021917,2]
[363181481,1748616653207,-3077.8,0.00021917,2]
[363181482,1748616653216,-2148.94,0.00021917,2]
[363181483,1748616653225,-420.0,0.00021917,2]
[363181484,1748616653235,-1128.16,0.00021917,2]
[363181485,1748616653244,-11937.18,0.00021917,2]
[363181486,1748616653253,-444.35,0.00021917,2]
[363181487,1748616653262,-2388.17,0.00021917,2]
[363181488,1748616653272,-182.952023,0.00021917,2]
[363181489,1748616653281,-3426.52,0.00021917,2]
[363181490,1748616653291,-1831.04,0.00021917,2]
[363181491,1748616653299,-420.0,0.00021917,2]
[363181492,1748616653309,-420.0,0.00021917,2]
[363181493,1748616653318,-420.0,0.00021917,2]
[363181494,1748616653327,-420.0,0.00021917,2]
[363181495,1748616653337,-420.0,0.00021917,2]
[363181496,1748616653346,-2509.24,0.00021917,2]
[363181497,1748616653356,-996.46,0.00021917,2]
[363181498,1748616653364,-420.0,0.00021917,2]
[363181499,1748616653374,-420.0,0.00021917,2]
[363181500,1748616653383,-1167.46,0.00021917,2]
[363181501,1748616653392,-420.0,0.00021917,2]
[363181502,1748616653401,-1396.36,0.00021917,2]
[363181503,1748616653409,-802.68,0.00021917,2]
[363181504,1748616653419,-420.0,0.00021917,2]
[363181505,1748616653428,-420.0,0.00021917,2]
[363181506,1748616653436,-151.0,0.00021917,2]
[363181507,1748616653444,-420.0,0.00021917,2]
[363181508,1748616653452,-1414.34,0.00021917,2]
[363181509,1748616653460,-1623.73,0.00021917,2]
[363181510,1748616653470,-422.51524074,0.00021917,2]
[363181511,1748616653479,-428.02292285,0.00021917,2]
[363181512,1748616653488,-420.0,0.00021917,2]
[363181513,1748616653498,-837.57,0.00021917,2]
[363181514,1748616653507,-511.38,0.00021917,2]
[363181515,1748616653516,-420.0,0.00021917,2]
[363181516,1748616653525,-420.0,0.00021917,2]
[363181517,1748616653534,-420.0,0.00021917,2]
[363181518,1748616653545,-7747.44,0.00021917,2]
[363181519,1748616653554,-420.0,0.00021917,2]
[363181520,1748616653563,-1609.98,0.00021917,2]
[363181521,1748616653573,-420.0,0.00021917,2]
[363181522,1748616653582,-3439.35,0.00021917,2]
[363181523,1748616653591,-428.22161238,0.00021917,2]
[363181524,1748616653600,-420.0,0.00021917,2]
[363181525,1748616653609,-447.12,0.00021917,2]
[363181526,1748616653618,-420.0,0.00021917,2]
[363181527,1748616653627,-3324.55,0.00021917,2]
[363181528,1748616653636,-1014.31,0.00021917,2]
[363181529,1748616653645,-421.64241825,0.00021917,2]
[363181530,1748616653655,-420.0,0.00021917,2]
[363181531,1748616653664,-500.0,0.00021917,2]
[363181532,1748616653675,-1444.59,0.00021917,2]
[363181533,1748616653684,-420.0,0.00021917,2]
[363181534,1748616653693,-420.0,0.00021917,2]
[363181535,1748616653702,-500.0,0.00021917,2]
[363181536,1748616653711,-500.0,0.00021917,2]
[363181537,1748616653720,-1959.61,0.00021917,2]
[363181538,1748616653729,-1364.37,0.00021917,2]
[363181539,1748616653739,-500.0,0.00021917,2]
[363181540,1748616653748,-500.0,0.00021917,2]
[363181541,1748616653757,-500.0,0.00021917,2]
[363181542,1748616653766,-500.0,0.00021917,2]
[363181543,1748616653775,-420.0,0.00021917,2]
[363181544,1748616653785,-420.0,0.00021917,2]
[363181545,1748616653794,-684.78,0.00021917,2]
[363181546,1748616653804,-420.0,0.00021917,2]
[363181547,1748616653814,-420.0,0.00021917,2]
[363181548,1748616653823,-1546.44,0.00021917,2]
[363181549,1748616653833,-3822.65,0.00021917,2]
[363181550,1748616653843,-1111.4,0.00021917,2]
[363181551,1748616653853,-451.26,0.00021917,2]
[363181552,1748616653863,-420.27942599,0.00021917,2]
[363181553,1748616653873,-420.0,0.00021917,2]
[363181554,1748616653882,-1605.55,0.00021917,2]
[363181555,1748616653893,-420.0,0.00021917,2]
[363181556,1748616653902,-420.0,0.00021917,2]
[363181557,1748616653911,-420.0,0.00021917,2]
[363181558,1748616653923,-7861.64,0.00021917,2]
[363181559,1748616653932,-4355.85,0.00021917,2]
[363181560,1748616653941,-1045.92,0.00021917,2]
[363181561,1748616653952,-420.0,0.00021917,2]
[363181562,1748616653963,-2872.74,0.00021917,2]
[363181563,1748616653972,-420.0,0.00021917,2]
[363181564,1748616653982,-3688.27,0.00021917,2]
[363181565,1748616653991,-804.19,0.00021917,2]
[363181566,1748616654001,-731.75,0.00021917,2]
[363181567,1748616654011,-8133.33,0.00021917,2]
[363181568,1748616654020,-4637.46,0.00021917,2]
[363181569,1748616654030,-784.27,0.00021917,2]
[363181570,1748616654040,-420.0,0.00021917,2]
[363181571,1748616654050,-420.0,0.00021917,2]
[363181572,1748616654059,-420.0,0.00021917,2]
[363181573,1748616654068,-477.61,0.00021917,2]
[363181574,1748616654078,-300.0,0.00021917,2]
[363181575,1748616654087,-423.16090606,0.00021917,2]
[363181576,1748616654096,-420.0,0.00021917,2]
[363181577,1748616654106,-688.18,0.00021917,2]
[363181578,1748616654115,-420.0,0.00021917,2]
[363181579,1748616654125,-750.82,0.00021917,2]
[363181580,1748616654134,-420.0,0.00021917,2]
[363181581,1748616654144,-420.0,0.00021917,2]
[363181582,1748616654153,-1187.39,0.00021917,2]
[363181583,1748616654164,-420.0,0.00021917,2]
[363181584,1748616654175,-1127.25,0.00021917,2]
[363181585,1748616654185,-1107.33,0.00021917,2]
[363181586,1748616654195,-420.0,0.00021917,2]
[363181587,1748616654205,-420.0,0.00021917,2]
[363181588,1748616654215,-227.69504465,0.00021917,2]
[363181589,1748616654225,-540.97,0.00021917,2]
[363181590,1748616654236,-905.07,0.00021917,2]
[363181591,1748616654246,-420.0,0.00021917,2]
[363181592,1748616654255,-1075.66,0.00021917,2]
[363181593,1748616654264,-439.16,0.00021917,2]
[363181594,1748616654273,-151.0,0.00021917,2]
[363181595,1748616654283,-420.0,0.00021917,2]
[363181596,1748616654292,-2589.68,0.00021917,2]
[363181597,1748616654301,-420.0,0.00021917,2]
[363181598,1748616654310,-2189.84,0.00021917,2]
[363181599,1748616654320,-500.0,0.00021917,2]
[363181600,1748616654329,-4287.96,0.00021917,2]
[363181601,1748616654339,-4096.99,0.00021917,2]
[363181602,1748616654348,-1690.88,0.00021917,2]
[363181603,1748616654357,-578.21,0.00021917,2]
[363181604,1748616654369,-1548.49,0.00021917,2]
[363181605,1748616654378,-191.27917147,0.00021917,2]
[363181606,1748616655231,-228.72082853,0.00021917,2]
[363181607,1748616655241,-1756.17431212,0.00021917,2]
[363181608,1748616655453,-848.0,0.0002129,2]
[363181609,1748616655464,-4244.29951837,0.000219,2]
[363181610,1748616655474,-67.00568788,0.00021917,2]
[363181611,1748616655483,-465.68,0.00021917,2]
[363181612,1748616655493,-420.0,0.00021917,2]
[363181613,1748616655502,-1751.91,0.00021917,2]
[363181614,1748616655512,-617.01,0.00021917,2]
[363181615,1748616655522,-420.0,0.00021917,2]
[363181616,1748616655532,-1777.12,0.00021917,2]
[363181617,1748616655543,-1507.46,0.00021917,2]
[363181618,1748616655553,-420.0,0.00021917,2]
[363181619,1748616655563,-1894.7,0.00021917,2]
[363181620,1748616655572,-504.7075415,0.00021917,2]
[363181621,1748616655582,-151.0,0.00021917,2]
[363181622,1748616655591,-160.0,0.00021917,2]
[363181623,1748616655600,-151.0,0.00021917,2]
[363181624,1748616655610,-151.0,0.00021917,2]
[363181625,1748616655619,-420.0,0.00021917,2]
[363181626,1748616655628,-4351.01,0.00021917,2]
[363181627,1748616655637,-420.0,0.00021917,2]
[363181628,1748616655647,-422.65781745,0.00021917,2]
[363181629,1748616655656,-420.0,0.00021917,2]
[363181630,1748616655666,-420.0,0.00021917,2]
[363181631,1748616655676,-2585.05,0.00021917,2]
[363181632,1748616655686,-1222.01,0.00021917,2]
[363181633,1748616655695,-420.0,0.00021917,2]
[363181634,1748616655706,-422.25772807,0.00021917,2]
[363181635,1748616655716,-420.0,0.00021917,2]
[363181636,1748616655726,-863.47,0.00021917,2]
[363181637,1748616655736,-10469.43,0.00021917,2]
[363181638,1748616655746,-420.0,0.00021917,2]
[363181639,1748616655756,-420.0,0.00021917,2]
[363181640,1748616655765,-1067.54,0.00021917,2]
[363181641,1748616655775,-7017.25,0.00021917,2]
[363181642,1748616655784,-1266.89,0.00021917,2]
[363181643,1748616655794,-766.08,0.00021917,2]
[363181644,1748616655804,-463.54,0.00021917,2]
[363181645,1748616655813,-420.0,0.00021917,2]
[363181646,1748616655823,-830.05,0.00021917,2]
[363181647,1748616655833,-503.70599313,0.00021917,2]
[363181648,1748616655843,-420.0,0.00021917,2]
[363181649,1748616655853,-420.0,0.00021917,2]
[363181650,1748616655863,-1462.11,0.00021917,2]
[363181651,1748616655872,-1371.29,0.00021917,2]
[363181652,1748616655882,-1196.73,0.00021917,2]
[363181653,1748616655891,-420.0,0.00021917,2]
[363181654,1748616655900,-420.0,0.00021917,2]
[363181655,1748616655910,-151.0,0.00021917,2]
[363181656,1748616655919,-430.89174217,0.00021917,2]
[363181657,1748616655929,-199.0,0.00021917,2]
[363181658,1748616655938,-420.0,0.00021917,2]
[363181659,1748616655947,-420.0,0.00021917,2]
[363181660,1748616655961,-413.41452465,0.00021917,2]
[363181661,1748616655971,-916.74,0.00021917,2]
[363181662,1748616655980,-420.0,0.00021917,2]
[363181663,1748616655989,-420.0,0.00021917,2]
[363181664,1748616655999,-420.0,0.00021917,2]
[363181665,1748616656008,-7621.46,0.00021917,2]
[363181666,1748616656018,-752.63,0.00021917,2]
[363181667,1748616656027,-420.0,0.00021917,2]
[363181668,1748616656037,-420.0,0.00021917,2]
[363181669,1748616656047,-420.0,0.00021917,2]
[363181670,1748616656056,-420.0,0.00021917,2]
[363181671,1748616656066,-1922.38,0.00021917,2]
[363181672,1748616656075,-420.0,0.00021917,2]
[363181673,1748616656085,-420.0,0.00021917,2]
[363181674,1748616656095,-30902.44,0.00021917,2]
[363181675,1748616656104,-863.25,0.00021917,2]
[363181676,1748616656114,-1215.86,0.00021917,2]
[363181677,1748616656123,-420.0,0.00021917,2]
[363181678,1748616656133,-2196.71,0.00021917,2]
[363181679,1748616656142,-420.0,0.00021917,2]
[363181680,1748616656152,-19786.17,0.00021917,2]
[363181681,1748616656161,-420.0,0.00021917,2]
[363181682,1748616656172,-420.0,0.00021917,2]
[363181683,1748616656182,-1096.59,0.00021917,2]
[363181684,1748616656192,-2824.35,0.00021917,2]
[363181685,1748616656201,-420.0,0.00021917,2]
[363181686,1748616656215,-462.07338744,0.00021917,2]
[363181687,1748616656225,-420.0,0.00021917,2]
[363181688,1748616656235,-420.0,0.00021917,2]
[363181689,1748616656244,-1561.5,0.00021917,2]
[363181690,1748616656254,-500.0,0.00021917,2]
[363181691,1748616656263,-500.0,0.00021917,2]
[363181692,1748616656273,-420.0,0.00021917,2]
[363181693,1748616656283,-1288.48,0.00021917,2]
[363181694,1748616656293,-1837.86,0.00021917,2]
[363181695,1748616656303,-510.12,0.00021917,2]
[363181696,1748616656313,-420.0,0.00021917,2]
[363181697,1748616656322,-420.0,0.00021917,2]
[363181698,1748616656332,-420.0,0.00021917,2]
[363181699,1748616656343,-9619.23,0.00021917,2]
[363181700,1748616656353,-498.4,0.00021917,2]
[363181701,1748616656363,-790.41,0.00021917,2]
[363181702,1748616656373,-420.0,0.00021917,2]
[363181703,1748616656383,-2881.41,0.00021917,2]
[363181704,1748616656392,-1874.83,0.00021917,2]
[363181705,1748616656402,-4648.04,0.00021917,2]
[363181706,1748616656412,-420.0,0.00021917,2]
[363181707,1748616656422,-420.0,0.00021917,2]
[363181708,1748616656431,-1116.9,0.00021917,2]
[363181709,1748616656441,-533.43,0.00021917,2]
[363181710,1748616656451,-843.21,0.00021917,2]
[363181711,1748616656460,-420.0,0.00021917,2]
[363181712,1748616656470,-1170.4,0.00021917,2]
[363181713,1748616656479,-3116.16,0.00021917,2]
[363181714,1748616656489,-420.0,0.00021917,2]
[363181715,1748616656498,-420.0,0.00021917,2]
[363181716,1748616656508,-540.20194575,0.00021917,2]
[363181717,1748616656518,-420.0,0.00021917,2]
[363181718,1748616656527,-1117.99,0.00021917,2]
[363181719,1748616656537,-484.99,0.00021917,2]
[363181720,1748616656546,-420.0,0.00021917,2]
[363181721,1748616656555,-420.0,0.00021917,2]
[363181722,1748616656565,-420.0,0.00021917,2]
[363181723,1748616656574,-420.0,0.00021917,2]
[363181724,1748616656584,-420.0,0.00021917,2]
[363181725,1748616656594,-521.76,0.00021917,2]
[363181726,1748616656603,-4258.18,0.00021917,2]
[363181727,1748616656613,-500.0,0.00021917,2]
[363181728,1748616656623,-302.56356135,0.00021917,2]
[363181729,1748616656633,-420.0,0.00021917,2]
[363181730,1748616656643,-1722.54,0.00021917,2]
[363181731,1748616656652,-500.0,0.00021917,2]
[363181732,1748616656661,-420.0,0.00021917,2]
[363181733,1748616656672,-3306.94,0.00021917,2]
[363181734,1748616656681,-420.0,0.00021917,2]
[363181735,1748616656690,-975.17,0.00021917,2]
[363181736,1748616656699,-420.0,0.00021917,2]
[363181737,1748616656708,-1444.28,0.00021917,2]
[363181738,1748616656717,-420.0,0.00021917,2]
[363181739,1748616656726,-420.0,0.00021917,2]
[363181740,1748616656736,-420.0,0.00021917,2]
[363181741,1748616656745,-420.0,0.00021917,2]
[363181742,1748616656754,-420.0,0.00021917,2]
[363181743,1748616656764,-9875.29,0.00021917,2]
[363181744,1748616656774,-3191.16,0.00021917,2]
[363181745,1748616656783,-420.0,0.00021917,2]
[363181746,1748616656793,-151.0,0.00021917,2]
[363181747,1748616656802,-1389.58,0.00021917,2]
[363181748,1748616656811,-151.0,0.00021917,2]
[363181749,1748616656821,-234.52746888,0.00021917,2]
[363181750,1748616656831,-151.0,0.00021917,2]
[363181751,1748616656839,-2632.36,0.00021917,2]
[363181752,1748616656849,-420.0,0.00021917,2]
[363181753,1748616656859,-420.0,0.00021917,2]
[363181754,1748616656869,-434.24545763,0.00021917,2]
[363181755,1748616656879,-3555.78,0.00021917,2]
[363181756,1748616656889,-420.0,0.00021917,2]
[363181757,1748616656898,-420.0,0.00021917,2]
[363181758,1748616656908,-663.81,0.00021917,2]
[363181759,1748616656918,-420.0,0.00021917,2]
[363181760,1748616656929,-420.0,0.00021917,2]
[363181761,1748616656939,-513.6430119,0.00021917,2]
[363181762,1748616656948,-420.0,0.00021917,2]
[363181763,1748616656962,-420.0,0.00021917,2]
[363181764,1748616656971,-790.77,0.00021917,2]
[363181765,1748616656982,-420.0,0.00021917,2]
[363181766,1748616656991,-420.0,0.00021917,2]
[363181767,1748616657002,-1308.89,0.00021917,2]
[363181768,1748616657011,-5033.32,0.00021917,2]
[363181769,1748616657021,-3214.54,0.00021917,2]
[363181770,1748616657031,-549.08,0.00021917,2]
[363181771,1748616657040,-420.0,0.00021917,2]
[363181772,1748616657049,-731.68,0.00021917,2]
[363181773,1748616657058,-763.71,0.00021917,2]
[363181774,1748616657066,-420.0,0.00021917,2]
[363181775,1748616657075,-667.16,0.00021917,2]
[363181776,1748616657085,-420.0,0.00021917,2]
[363181777,1748616657094,-420.0,0.00021917,2]
[363181778,1748616657104,-2115.91,0.00021917,2]
[363181779,1748616657113,-1293.88,0.00021917,2]
[363181780,1748616657122,-420.0,0.00021917,2]
[363181781,1748616657132,-420.0,0.00021917,2]
[363181782,1748616657141,-4984.658341,0.00021917,2]
[363181783,1748616657151,-4984.658341,0.00021917,2]
[363181784,1748616657160,-420.0,0.00021917,2]
[363181785,1748616657172,-4984.658341,0.00021917,2]
[363181786,1748616657182,-420.0,0.00021917,2]
[363181787,1748616657192,-421.7546864,0.00021917,2]
[363181788,1748616657202,-830.28,0.00021917,2]
[363181789,1748616657211,-2421.43,0.00021917,2]
[363181790,1748616657220,-420.0,0.00021917,2]
[363181791,1748616657229,-420.0,0.00021917,2]
[363181792,1748616657239,-2654.8,0.00021917,2]
[363181793,1748616657248,-4984.658341,0.00021917,2]
[363181794,1748616657257,-4984.658341,0.00021917,2]
[363181795,1748616657267,-4984.658341,0.00021917,2]
[363181796,1748616657276,-420.0,0.00021917,2]
[363181797,1748616657285,-420.0,0.00021917,2]
[363181798,1748616657294,-2893.63,0.00021917,2]
[363181799,1748616657303,-420.0,0.00021917,2]
[363181800,1748616657313,-420.0,0.00021917,2]
[363181801,1748616657322,-420.0,0.00021917,2]
[363181802,1748616657332,-420.0,0.00021917,2]
[363181803,1748616657341,-420.0,0.00021917,2]
[363181804,1748616657351,-420.0,0.00021917,2]
[363181805,1748616657361,-420.0,0.00021917,2]
[363181806,1748616657370,-730.33,0.00021917,2]
[363181807,1748616657380,-432.28,0.00021917,2]
[363181808,1748616657390,-420.0,0.00021917,2]
[363181809,1748616657399,-483.41,0.00021917,2]
[363181810,1748616657408,-5061.43,0.00021917,2]
[363181811,1748616657418,-151.0,0.00021917,2]
[363181812,1748616657428,-1412.1,0.00021917,2]
[363181813,1748616657438,-420.0,0.00021917,2]
[363181814,1748616657447,-420.0,0.00021917,2]
[363181815,1748616657459,-420.0,0.00021917,2]
[363181816,1748616657468,-151.0,0.00021917,2]
[363181817,1748616657477,-1059.02,0.00021917,2]
[363181818,1748616657486,-4245.53,0.00021917,2]
[363181819,1748616657495,-166.489499,0.00021917,2]
[363181820,1748616657504,-2071.38,0.00021917,2]
[363181821,1748616657513,-583.9,0.00021917,2]
[363181822,1748616657522,-420.0,0.00021917,2]
[363181823,1748616657531,-7181.64,0.00021917,2]
[363181824,1748616657540,-500.0,0.00021917,2]
[363181825,1748616657549,-500.0,0.00021917,2]
[363181826,1748616657558,-420.0,0.00021917,2]
[363181827,1748616657567,-500.0,0.00021917,2]
[363181828,1748616657575,-502.03639381,0.00021917,2]
[363181829,1748616657584,-420.0,0.00021917,2]
[363181830,1748616657593,-1405.78,0.00021917,2]
[363181831,1748616657603,-990.01,0.00021917,2]
[363181832,1748616657612,-420.0,0.00021917,2]
[363181833,1748616657620,-420.0,0.00021917,2]
[363181834,1748616657630,-1729.13,0.00021917,2]
[363181835,1748616657639,-420.0,0.00021917,2]
[363181836,1748616657649,-420.0,0.00021917,2]
[363181837,1748616657658,-761.2,0.00021917,2]
[363181838,1748616657668,-420.0,0.00021917,2]
[363181839,1748616657679,-647.51,0.00021917,2]
[363181840,1748616657688,-420.0,0.00021917,2]
[363181841,1748616657698,-420.0,0.00021917,2]
[363181842,1748616657708,-815.83,0.00021917,2]
[363181843,1748616657718,-834.19,0.00021917,2]
[363181844,1748616657727,-896.91,0.00021917,2]
[363181845,1748616657736,-420.96953135,0.00021917,2]
[363181846,1748616657966,-420.0,0.00021917,2]
[363181847,1748616657976,-420.0,0.00021917,2]
[363181848,1748616657986,-420.0,0.00021917,2]
[363181849,1748616657995,-420.0,0.00021917,2]
[363181850,1748616658003,-566.4,0.00021918,2]
[363181851,1748616658011,-515.36917863,0.00021918,2]
[363181852,1748616658021,-500.0,0.00021918,2]
[363181853,1748616658031,-500.0,0.00021918,2]
[363181854,1748616658041,-500.0,0.00021918,2]
[363181855,1748616658050,-500.0,0.00021918,2]
[363181856,1748616658057,-365.71403758,0.00021918,2]
[363181857,1748616658066,-500.0,0.00021918,2]
[363181858,1748616658074,-151.0,0.00021918,7]
[363181859,1748616658084,-151.0,0.00021918,7]
[363181860,1748616658094,-151.0,0.00021918,7]
[363181861,1748616658105,-151.0,0.00021918,7]
[363181862,1748616658116,-151.0,0.00021918,7]
[363181863,1748616658127,-222.98908,0.00021918,7]
[363181864,1748616658138,-222.98908,0.00021918,7]
[363181865,1748616658149,-151.0,0.00021918,7]
[363181866,1748616658159,-500.0,0.00021918,2]
[363181867,1748616658169,-500.0,0.00021918,2]
[363181868,1748616658181,-500.0,0.00021918,2]
[363181869,1748616658190,-500.0,0.00021918,2]
[363181870,1748616658201,-500.0,0.00021918,2]
[363181871,1748616658211,-500.0,0.00021918,2]
[363181872,1748616658220,-500.0,0.00021918,2]
[363181873,1748616658230,-500.0,0.00021918,2]
[363181874,1748616658240,-500.0,0.00021918,2]
[363181875,1748616658250,-500.0,0.00021918,2]
[363181876,1748616658259,-500.0,0.00021918,2]
[363181877,1748616658269,-500.0,0.00021918,2]
[363181878,1748616658279,-500.0,0.00021918,2]
[363181879,1748616658288,-500.0,0.00021918,2]
[363181880,1748616658298,-500.0,0.00021918,2]
[363181881,1748616658308,-500.0,0.00021918,2]
[363181882,1748616658318,-500.0,0.00021918,2]
[363181883,1748616658327,-500.0,0.00021918,2]
[363181884,1748616658337,-184.83324943,0.00021918,2]
[363181885,1748616658347,-500.0,0.00021918,2]
[363181886,1748616658357,-500.0,0.00021918,2]
[363181887,1748616658366,-500.0,0.00021918,2]
[363181888,1748616658376,-500.0,0.00021918,2]
[363181889,1748616658385,-500.0,0.00021918,2]
[363181890,1748616658396,-500.0,0.00021918,2]
[363181891,1748616658406,-500.0,0.00021918,2]
[363181892,1748616658416,-500.0,0.00021918,2]
[363181893,1748616658429,-500.0,0.00021918,2]
[363181894,1748616658439,-500.0,0.00021918,2]
[363181895,1748616658448,-500.0,0.00021918,2]
[363181896,1748616658458,-500.0,0.00021918,2]
[363181897,1748616658468,-500.0,0.00021918,2]
[363181898,1748616658481,-500.0,0.00021918,2]
[363181899,1748616658491,-592.33307477,0.00021918,2]
[363181900,1748616658501,-500.0,0.00021918,2]
[363181901,1748616658511,-500.0,0.00021918,2]
[363181902,1748616658520,-500.0,0.00021918,2]
[363181903,1748616658530,-500.0,0.00021918,2]
[363181904,1748616658540,-500.0,0.00021918,2]
[363181905,1748616658549,-500.0,0.00021918,2]
[363181906,1748616658560,-500.0,0.00021918,2]
[363181907,1748616658570,-500.0,0.00021918,2]
[363181908,1748616658580,-500.0,0.00021918,2]
[363181909,1748616658590,-500.0,0.00021918,2]
[363181910,1748616658600,-500.0,0.00021918,2]
[363181911,1748616658610,-500.0,0.00021918,2]
[363181912,1748616658620,-500.0,0.00021918,2]
[363181913,1748616658629,-500.0,0.00021918,2]
[363181914,1748616658639,-500.0,0.00021918,2]
[363181915,1748616658650,-500.0,0.00021918,2]
[363181916,1748616658660,-500.0,0.00021918,2]
[363181917,1748616658669,-500.0,0.00021918,2]
[363181918,1748616658681,-500.0,0.00021918,2]
[363181919,1748616658691,-500.0,0.00021918,2]
[363181920,1748616658701,-549.42797474,0.00021918,2]
[363181921,1748616658711,-549.42797474,0.00021918,2]
[363181922,1748616658721,-549.42797474,0.00021918,2]